bitfinex-derivatives/quotes_ETHF0:USTF0_20210402
["timestamp","ask_amount","ask_price","bid_price","bid_amount"]
[1617354509177,9.09773151,1990.1,1989.5,2.0]
[1617354509377,9.09773151,1990.1,1989.5,3.4043]
[1617354509577,9.09773151,1990.1,1989.5,1.4043]
[1617354509781,9.24281759,1990.1,1989.8,2.90695]
[1617354511181,0.1451243,1990.0,1989.8,2.90695]
[1617354511779,2.90695,1989.9,1989.8,2.90695]
[1617354513782,62.5551,1990.0,1989.8,2.90695]
[1617354515884,64.45825,1990.0,1989.8,2.90695]
[1617354516083,61.5513,1990.0,1989.8,2.90695]
[1617354517882,64.45825,1990.0,1989.8,2.90695]
[1617354522287,61.5513,1990.0,1989.8,2.90695]
[1617354522887,60.5475,1990.0,1989.8,2.90695]
[1617354523787,63.45445,1990.0,1989.8,2.90695]
[1617354527492,2.90695,1990.0,1989.8,2.90695]
[1617354527692,4.13865,1990.0,1989.8,2.90695]
[1617354528893,4.28388969,1990.0,1989.8,2.90695]
[1617354529900,3.28008969,1990.0,1989.8,2.90695]
[1617354531501,79.4339,1989.9,1989.8,2.90695]
[1617354537006,78.4301,1989.9,1989.8,2.90695]
[1617354538207,0.14524027,1990.0,1989.8,2.90695]
[1617354538407,0.14524027,1990.0,1989.8,85.32275]
[1617354538608,9.09773151,1990.1,1989.8,85.32275]
[1617354539409,9.09773151,1990.1,1989.8,2.90695]
[1617354539807,79.2769,1989.9,1989.8,2.90695]
[1617354543914,78.2731,1989.9,1989.8,2.90695]
[1617354549420,9.09773151,1990.1,1989.8,2.90695]
[1617354549622,9.09773151,1990.1,1989.8,84.30965]
[1617354550020,9.09773151,1990.1,1990.0,2.90695]
[1617354551025,8.09393151,1990.1,1990.0,2.90695]
[1617354557934,7.09013151,1990.1,1990.0,2.90695]
[1617354565037,6.08633151,1990.1,1990.0,2.90695]
[1617354571940,5.08253151,1990.1,1990.0,2.90695]
[1617354575943,6.69623151,1990.1,1990.0,2.90695]
[1617354577546,5.08253151,1990.1,1990.0,2.90695]
[1617354579247,5.08253151,1990.1,1990.0,4.21045]
[1617354581047,5.08253151,1990.1,1990.0,2.90695]
[1617354583951,5.08253151,1990.1,1990.0,75.85315]
[1617354586856,5.08253151,1990.1,1990.0,2.90695]
[1617354587054,4.07893151,1990.1,1990.0,2.90695]
[1617354592567,4.07893151,1990.1,1990.0,4.90695]
[1617354593968,3.07533151,1990.1,1990.0,4.90695]
[1617354594168,3.07533151,1990.1,1990.0,2.90695]
[1617354594968,3.07533151,1990.1,1990.0,4.90695]
[1617354595669,3.07533151,1990.1,1990.0,2.90695]
[1617354597969,3.07533151,1990.1,1990.0,4.46675]
[1617354598372,3.07533151,1990.1,1990.0,6.46675]
[1617354601074,2.07173151,1990.1,1990.0,6.46675]
[1617354605677,2.07173151,1990.1,1990.0,4.46675]
[1617354605877,2.07173151,1990.1,1990.0,2.90695]
[1617354607880,2.07173151,1990.1,1990.0,4.90695]
[1617354608079,1.06813151,1990.1,1990.0,4.90695]
[1617354611784,1.06813151,1990.1,1990.0,2.90695]
[1617354614988,0.06453151,1990.1,1990.0,2.90695]
[1617354616390,0.06453151,1990.1,1990.0,4.83255]
[1617354621997,0.66392081,1991.0,1990.0,4.83255]
[1617354622197,0.66392081,1991.0,1990.5,56.4813]
[1617354622404,0.66392081,1991.0,1990.5,57.8225]
[1617354622598,0.66392081,1991.0,1990.9,2.90695]
[1617354626111,70.77654833,1991.2,1990.9,2.90695]
[1617354626112,69.8439,1991.2,1990.9,2.90695]
[1617354626719,69.8439,1991.2,1991.1,2.05563249]
[1617354626914,3.83940936,1991.3,1991.1,2.05563249]
[1617354627521,2.75030646,1991.2,1991.1,2.05563249]
[1617354627925,1.818,1991.2,1991.1,2.05563249]
[1617354628712,2.75041576,1991.2,1991.1,2.05563249]
[1617354629113,1.74681576,1991.2,1991.1,2.05563249]
[1617354629812,1.74681576,1991.2,1991.1,73.71543249]
[1617354630414,0.8144,1991.2,1991.1,73.71543249]
[1617354630612,1.74666053,1991.2,1991.1,73.71543249]
[1617354632015,0.93226053,1991.2,1991.1,73.71543249]
[1617354632618,3.83963939,1991.3,1991.1,73.71543249]
[1617354633620,2.90695,1991.3,1991.1,73.71543249]
[1617354634819,3.84012739,1991.3,1991.1,73.71543249]
[1617354635525,2.90695,1991.3,1991.1,73.71543249]
[1617354636122,1.90335,1991.3,1991.1,73.71543249]
[1617354636722,0.93332101,1991.4,1991.1,73.71543249]
[1617354637123,3.84067734,1991.5,1991.1,73.71543249]
[1617354638624,3.84067734,1991.5,1991.4,2.90695]
[1617354640831,0.93372734,1991.5,1991.4,2.90695]
[1617354641233,1.18355568,1991.6,1991.4,2.90695]
[1617354641234,2.11624074,1991.6,1991.4,2.90695]
[1617354641431,2.11624074,1991.6,1991.4,4.39735]
[1617354641631,15.10920376,1991.7,1991.4,4.39735]
[1617354642232,14.1764,1991.7,1991.4,4.39735]
[1617354642633,14.1764,1991.7,1991.6,2.90695]
[1617354642834,0.93298596,1991.8,1991.6,2.90695]
[1617354643033,2.83633596,1991.9,1991.6,2.90695]
[1617354643432,2.83633596,1991.9,1991.8,83.4113]
[1617354644733,2.83633596,1991.9,1991.8,86.31825]
[1617354646934,2.83633596,1991.9,1991.8,88.02325]
[1617354647335,1.16634888,1992.3,1991.8,4.61195]
[1617354648737,1.16634888,1992.3,1992.2,2.90695]
[1617354648937,24.3839968,1992.7,1992.6,64.49145808]
[1617354648938,17.64335,1992.7,1992.6,64.49145808]
[1617354650135,16.63975,1992.7,1992.6,64.49145808]
[1617354650736,16.63975,1992.7,1992.6,2.90695]
[1617354650936,2.90695,1992.7,1992.6,2.90695]
[1617354651339,2.90695,1992.7,1992.6,4.43905]
[1617354652740,2.90695,1992.7,1992.6,85.10255]
[1617354653739,1.16611091,1993.3,1992.6,85.10255]
[1617354653939,1.16611091,1993.3,1993.2,83.8676]
[1617354654141,1.16611091,1993.3,1993.2,85.7917]
[1617354654340,1.16630436,1993.4,1993.2,85.7917]
[1617354654540,1.16691776,1993.6,1993.2,85.7917]
[1617354654739,1.16691776,1993.6,1993.5,2.90695]
[1617354655039,1.16732167,1993.7,1993.5,2.90695]
[1617354655539,2.04573123,1993.9,1993.5,2.90695]
[1617354655540,1.16737374,1993.8,1993.5,2.90695]
[1617354656742,1.16737374,1993.8,1993.7,2.90695]
[1617354656940,1.16784541,1993.9,1993.7,4.15555]
[1617354657748,2.00240983,1994.0,1993.7,4.15555]
[1617354658745,0.83448102,1994.0,1993.9,2.90695]
[1617354658942,0.83448102,1994.0,1993.9,81.07055]
[1617354659143,3.9075654,1994.1,1993.9,81.07055]
[1617354659346,2.73913102,1994.1,1993.9,2.90695]
[1617354663549,32.73913102,1994.1,1993.9,2.90695]
[1617354663949,33.2852,1994.0,1993.9,2.90695]
[1617354664150,33.2852,1994.0,1992.8,75.9466]
[1617354664349,33.2852,1994.0,1991.9,2.0]
[1617354664549,62.5142,1993.1,1991.9,2.0]
[1617354664950,62.5142,1993.1,1993.0,2.90695]
[1617354666150,61.5119,1993.1,1993.0,2.90695]
[1617354666751,1.3137,1993.1,1993.0,2.90695]
[1617354668152,31.3137,1993.1,1993.0,2.90695]
[1617354668353,33.3137,1993.1,1993.0,2.90695]
[1617354668952,36.22065,1993.1,1993.0,2.90695]
[1617354670758,97.24845,1993.1,1993.0,2.90695]
[1617354673169,96.24615,1993.1,1993.0,2.90695]
[1617354673761,35.21835,1993.1,1993.0,2.90695]
[1617354675664,35.21835,1993.1,1993.0,2.58905]
[1617354678271,35.21835,1993.1,1993.0,2.53495]
[1617354680269,34.21605,1993.1,1993.0,2.53495]
[1617354680468,35.95115,1993.1,1993.0,2.53495]
[1617354682272,34.21605,1993.1,1993.0,2.53495]
[1617354685678,34.21605,1993.1,1991.6,82.4527]
[1617354685877,65.3952,1992.3,1991.6,82.4527]
[1617354686978,66.4054,1992.3,1991.6,82.4527]
[1617354687180,68.31005,1992.3,1992.2,2.90695]
[1617354688181,2.90695,1992.3,1992.2,2.90695]
[1617354694293,1.90465,1992.3,1992.2,2.90695]
[1617354697589,72.0797,1992.8,1992.2,2.90695]
[1617354699090,72.0797,1992.8,1992.2,3.90695]
[1617354699291,72.0797,1992.8,1992.7,2.90695]
[1617354700093,0.05779312,1993.1,1992.7,2.90695]
[1617354700293,0.05779312,1993.1,1992.7,74.37085]
[1617354700493,0.05781586,1993.2,1992.7,74.37085]
[1617354700893,0.0578752,1993.4,1992.7,74.37085]
[1617354701195,2.90695,1993.4,1992.2,1.0]
[1617354701393,66.5864,1992.7,1992.2,1.0]
[1617354703293,66.5864,1992.7,1992.6,2.90695]
[1617354708197,65.5841,1992.7,1992.6,2.90695]
[1617354712203,2.90695,1992.9,1992.6,2.90695]
[1617354713005,2.90695,1992.9,1992.6,4.87325]
[1617354713405,2.90695,1993.5,1992.8,67.36785]
[1617354715206,1.90465,1993.5,1992.8,67.36785]
[1617354715406,1.90465,1993.5,1993.4,2.90695]
[1617354718610,1.90465,1993.5,1992.2,1.0]
[1617354718817,57.0365,1992.9,1992.2,1.0]
[1617354719015,58.3688,1992.9,1992.2,1.0]
[1617354719414,61.27575,1992.9,1992.8,2.90695]
[1617354719617,58.3688,1992.9,1992.8,2.90695]
[1617354720715,1.3323,1992.9,1992.8,2.90695]
[1617354720915,0.05798291,1993.0,1992.8,2.90695]
[1617354721116,57.233,1992.9,1992.8,2.90695]
[1617354722220,56.2307,1992.9,1992.8,2.90695]
[1617354723817,1.90512256,1993.1,1992.8,2.90695]
[1617354724017,0.05804265,1993.2,1992.8,2.90695]
[1617354724219,0.05805867,1993.3,1992.8,2.90695]
[1617354724618,0.05806784,1993.4,1992.8,2.90695]
[1617354725221,0.05805431,1993.3,1992.8,2.90695]
[1617354725422,0.05805431,1993.3,1993.2,2.90695]
[1617354725621,0.05806157,1993.4,1993.2,2.90695]
[1617354726220,0.05805694,1993.3,1993.2,2.90695]
[1617354726621,0.05806755,1993.4,1993.2,2.90695]
[1617354727821,71.27358914,1993.6,1993.2,2.90695]
[1617354729424,71.27358914,1993.6,1993.5,2.90695]
[1617354731727,70.57495,1993.6,1993.5,2.90695]
[1617354733129,71.27345148,1993.6,1993.5,2.90695]
[1617354733928,70.57495,1993.6,1993.5,2.90695]
[1617354734332,70.27166402,1993.6,1993.5,2.90695]
[1617354735029,69.57295,1993.6,1993.5,2.90695]
[1617354735229,82.57295,1993.6,1993.5,2.90695]
[1617354739735,15.90695,1993.6,1993.5,2.90695]
[1617354740336,13.0,1993.6,1993.5,2.90695]
[1617354740738,13.05828508,1993.6,1993.5,2.90695]
[1617354741336,12.05628508,1993.6,1993.5,2.90695]
[1617354742539,11.998,1993.6,1993.5,2.90695]
[1617354742939,12.05627859,1993.6,1993.5,2.90695]
[1617354746541,11.998,1993.6,1993.5,2.90695]
[1617354748244,10.996,1993.6,1993.5,2.90695]
[1617354751247,11.0251001,1993.6,1993.5,2.90695]
[1617354751947,11.05418859,1993.6,1993.5,2.90695]
[1617354753557,13.90295,1993.6,1993.1,2.90695]
[1617354753951,1.58726991,1993.2,1993.1,2.90695]
[1617354754150,1.61632238,1993.2,1993.1,2.90695]
[1617354755351,0.61432238,1993.2,1993.1,2.90695]
[1617354756953,0.58526332,1993.2,1993.1,2.90695]
[1617354757353,0.0581372,1993.2,1993.1,2.90695]
[1617354758954,0.02906928,1993.2,1993.1,2.90695]
[1617354762160,61.44507372,1993.3,1993.1,2.90695]
[1617354762360,60.44307372,1993.3,1993.1,2.90695]
[1617354762563,0.02907378,1993.2,1993.1,2.90695]
[1617354763864,0.05817797,1993.2,1993.1,2.90695]
[1617354765464,0.02908474,1993.2,1993.1,2.90695]
[1617354769275,59.49925422,1993.3,1993.1,2.90695]
[1617354770875,0.05820656,1993.2,1993.1,2.90695]
[1617354771276,1.9568,1993.2,1993.1,2.90695]
[1617354774679,61.7374,1993.2,1993.1,2.90695]
[1617354775681,1.9568,1993.2,1993.1,2.90695]
[1617354776283,0.9548,1993.2,1993.1,2.90695]
[1617354776484,1.47508298,1993.3,1993.1,2.90695]
[1617354776883,0.4653269,1993.2,1993.1,2.90695]
[1617354777786,3.3722769,1993.2,1993.1,2.90695]
[1617354777986,4.5825769,1993.2,1993.1,2.90695]
[1617354779988,4.11725,1993.2,1993.1,2.90695]
[1617354780590,4.81510318,1993.2,1993.1,2.90695]
[1617354781190,5.04821169,1993.2,1993.1,2.90695]
[1617354781389,35.04821169,1993.2,1993.1,2.90695]
[1617354781889,36.23071138,1993.2,1993.1,2.90695]
[1617354782090,38.23071138,1993.2,1993.1,2.90695]
[1617354782292,38.23071138,1993.2,1992.2,1.0]
[1617354782491,56.6069,1993.1,1992.2,1.0]
[1617354782692,32.0,1993.0,1992.2,1.0]
[1617354782892,0.05814232,1992.3,1992.2,1.0]
[1617354783092,1.86394232,1992.3,1992.2,1.0]
[1617354783293,0.86194232,1992.3,1992.2,1.0]
[1617354783792,3.76889232,1992.3,1992.2,3.90695]
[1617354787301,0.86194232,1992.3,1992.2,3.90695]
[1617354787500,0.46515112,1992.7,1992.2,3.90695]
[1617354787900,0.46515112,1992.7,1992.6,2.90695]
[1617354788500,2.32245657,1992.8,1992.6,2.90695]
[1617354789301,0.46513967,1992.7,1992.6,2.90695]
[1617354789501,72.85917243,1992.8,1992.6,2.90695]
[1617354789803,2.90695,1992.7,1992.6,2.90695]
[1617354790403,2.3701147,1992.7,1992.6,2.90695]
[1617354790603,3.9314147,1992.7,1992.6,2.90695]
[1617354791002,4.46215,1992.7,1992.6,2.90695]
[1617354792405,3.46625,1992.7,1992.6,2.90695]
[1617354792903,3.93109871,1992.7,1992.6,2.90695]
[1617354794007,3.46625,1992.7,1992.6,2.90695]
[1617354795207,3.46625,1992.7,1992.2,1.0]
[1617354795408,3.93113376,1992.7,1992.2,1.0]
[1617354795907,2.02618376,1992.7,1992.6,2.90695]
[1617354796108,2.02618376,1992.7,1992.2,1.0]
[1617354796409,1.5613,1992.7,1992.2,1.0]
[1617354796611,71.23376591,1992.8,1992.2,1.0]
[1617354796810,0.46469482,1992.6,1992.2,1.0]
[1617354797010,1.77609482,1992.6,1992.2,1.0]
[1617354797312,0.77409482,1992.6,1992.2,1.0]
[1617354797912,0.77409482,1992.6,1992.5,2.90695]
[1617354799513,0.77409482,1992.6,1992.2,1.0]
[1617354799915,0.77409482,1992.6,1992.5,2.90695]
[1617354802219,0.29048012,1992.6,1992.5,2.90695]
[1617354803017,0.29045837,1992.7,1992.5,2.90695]
[1617354803317,0.29044734,1992.6,1992.5,2.90695]
[1617354803718,1.77786243,1992.7,1992.5,2.90695]
[1617354804018,2.90695,1992.6,1992.5,2.90695]
[1617354805119,3.1973084,1992.6,1992.5,2.90695]
[1617354810126,0.2903584,1992.6,1992.5,2.90695]
[1617354812029,3.1973084,1992.6,1992.5,2.90695]
[1617354813632,2.90695,1992.6,1992.5,2.90695]
[1617354816637,0.29020506,1992.7,1992.5,2.90695]
[1617354817036,0.29027501,1992.8,1992.5,2.90695]
[1617354817237,0.29034293,1992.9,1992.5,66.39975]
[1617354818136,0.01451774,1992.6,1992.5,63.4928]
[1617354818336,0.01451774,1992.6,1992.2,2.6769]
[1617354818543,69.7378,1992.6,1992.2,2.6769]
[1617354820245,69.7378,1992.6,1992.5,2.90695]
[1617354824948,1.0028,1992.7,1992.5,2.90695]
[1617354825347,0.0004,1992.7,1992.5,2.90695]
[1617354825547,0.29075345,1992.7,1992.5,2.90695]
[1617354827548,0.29035345,1992.7,1992.5,2.90695]
[1617354829851,72.5838,1992.6,1992.5,2.90695]
[1617354830249,75.49075,1992.6,1992.5,2.90695]
[1617354830649,75.78101633,1992.6,1992.5,2.90695]
[1617354831050,75.49075,1992.6,1992.5,2.90695]
[1617354832149,75.78102113,1992.6,1992.5,2.90695]
[1617354832451,74.77862113,1992.6,1992.5,2.90695]
[1617354832849,74.48835,1992.6,1992.5,2.90695]
[1617354833050,4.27105,1992.6,1992.5,2.90695]
[1617354833451,4.5613122,1992.6,1992.5,2.90695]
[1617354835558,2.90695,1992.6,1992.5,2.90695]
[1617354835955,4.67994156,1992.6,1992.5,2.90695]
[1617354836357,4.38975,1992.6,1992.5,2.90695]
[1617354839562,4.08468755,1992.6,1992.5,2.90695]
[1617354839965,3.38735,1992.6,1992.5,2.90695]
[1617354840564,4.0846892,1992.6,1992.5,2.90695]
[1617354841264,3.38735,1992.6,1992.5,2.90695]
[1617354841468,4.08490077,1992.6,1992.5,2.90695]
[1617354842265,3.38735,1992.6,1992.5,2.90695]
[1617354842566,4.08492527,1992.6,1992.5,2.90695]
[1617354845071,3.38735,1992.6,1992.5,2.90695]
[1617354846474,2.38495,1992.6,1992.5,2.90695]
[1617354848481,32.38495,1992.6,1992.5,2.90695]
[1617354848674,32.38495,1992.6,1992.5,1.93095]
[1617354848877,34.7310447,1992.6,1992.5,1.93095]
[1617354849074,36.7310447,1992.6,1992.5,1.93095]
[1617354849275,35.5678956,1992.6,1992.5,1.93095]
[1617354849674,35.5678956,1992.6,1991.0,63.0017]
[1617354849675,37.60563533,1992.6,1991.0,63.0017]
[1617354849875,32.0,1992.1,1991.0,63.0017]
[1617354850274,0.29054768,1991.5,1990.1,32.0]
[1617354850476,2.02124768,1991.5,1991.4,2.90695]
[1617354851679,1.7307,1991.5,1991.4,2.90695]
[1617354853382,0.7283,1991.5,1991.4,2.90695]
[1617354854882,1.7193,1991.5,1991.4,2.90695]
[1617354855083,0.7283,1991.5,1991.4,2.90695]
[1617354855482,0.28986705,1991.7,1991.4,2.90695]
[1617354855684,0.28980832,1991.6,1991.4,2.90695]
[1617354856084,1.29220832,1991.6,1991.4,2.90695]
[1617354856486,0.28979377,1991.5,1991.4,2.90695]
[1617354856887,1.59069377,1991.5,1991.4,2.90695]
[1617354858686,1.3009,1991.5,1991.4,2.90695]
[1617354860088,0.29004873,1991.5,1991.4,2.90695]
[1617354860487,2.19459873,1991.7,1991.4,2.90695]
[1617354861296,2.19459873,1991.7,1991.4,2.17265]
[1617354861700,2.19459873,1991.7,1991.4,1.41075]
[1617354861891,2.8907573,1991.7,1991.4,1.41075]
[1617354862590,2.90695,1991.5,1991.2,2.90695]
[1617354862791,2.0,1991.4,1991.2,2.90695]
[1617354862991,3.4731,1991.4,1991.2,2.40895]
[1617354863593,30.0,1991.3,1991.2,2.40895]
[1617354863993,32.0,1991.3,1991.2,2.40895]
[1617354864592,34.90695,1991.3,1991.2,2.40895]
[1617354865494,34.90695,1991.3,1991.2,0.39135]
[1617354865695,34.90695,1991.3,1990.1,57.3832]
[1617354866095,30.0,1991.1,1990.1,57.3832]
[1617354866295,32.0,1991.1,1990.1,57.3832]
[1617354866495,32.0,1991.1,1990.2,2.90695]
[1617354866695,30.0,1991.1,1990.2,2.90695]
[1617354867096,57.358,1990.3,1990.2,2.90695]
[1617354867295,58.8592,1990.3,1990.2,2.90695]
[1617354867496,57.8568,1990.3,1990.2,2.90695]
[1617354868296,2.5025,1990.3,1990.2,2.90695]
[1617354868499,2.5025,1990.3,1987.1,11.72784232]
[1617354868500,32.5025,1990.3,1988.0,30.0]
[1617354868698,30.0,1990.1,1989.5,2.90695]
[1617354868898,66.1903,1989.5,1987.2,30.0]
[1617354869098,67.9562,1989.5,1987.2,30.0]
[1617354869298,1.7659,1989.5,1987.2,30.0]
[1617354869497,1.7659,1989.5,1988.0,57.8673]
[1617354869900,1.7659,1989.5,1988.0,59.8673]
[1617354870499,1.7659,1989.5,1988.0,2.0]
[1617354870700,1.7659,1989.5,1989.4,2.90695]
[1617354870900,1.7659,1989.5,1988.0,2.0]
[1617354870901,71.3048,1989.4,1988.0,2.0]
[1617354871505,101.3048,1989.4,1987.9,63.6785]
[1617354872404,101.3048,1989.4,1987.9,65.6785]
[1617354872603,101.3048,1989.4,1988.9,2.90695]
[1617354873406,30.0,1989.4,1986.9,30.0]
[1617354873808,82.5234,1988.4,1986.9,30.0]
[1617354874406,82.5234,1988.4,1987.0,2.0]
[1617354874607,81.521,1988.4,1988.3,2.90695]
[1617354874807,1.6159,1988.4,1988.3,2.90695]
[1617354875411,64.7999,1988.8,1988.3,2.90695]
[1617354876712,94.7999,1988.8,1988.6,2.90695]
[1617354877312,64.7999,1988.8,1988.6,2.90695]
[1617354878714,2.90695,1988.7,1988.2,82.6576]
[1617354880614,2.90695,1988.3,1988.2,85.56455]
[1617354881515,1.90455,1988.3,1988.2,85.56455]
[1617354883220,77.8314,1988.2,1987.0,2.0]
[1617354883819,77.8314,1988.2,1986.8,81.1983]
[1617354884016,77.8314,1988.2,1986.8,83.1983]
[1617354884622,77.8314,1988.2,1987.9,2.90695]
[1617354885030,1.0132,1988.7,1987.9,2.90695]
[1617354885219,30.0,1988.8,1987.9,2.90695]
[1617354885419,91.7576,1988.8,1987.9,2.90695]
[1617354886018,61.7576,1988.8,1987.9,2.90695]
[1617354886427,91.7576,1988.8,1987.9,2.90695]
[1617354886623,2.90695,1988.0,1987.9,2.90695]
[1617354893424,58.6642,1988.1,1987.9,2.90695]
[1617354893625,2.7614,1988.5,1987.9,2.90695]
[1617354893825,2.7184,1988.9,1988.0,79.81]
[1617354894026,1.0203,1988.9,1988.0,79.81]
[1617354894833,1.0203,1988.9,1988.5,2.90695]
[1617354896527,0.0158,1988.9,1988.5,2.90695]
[1617354896729,2.90695,1988.6,1988.5,2.90695]
[1617354896929,3.91755,1988.6,1988.5,2.90695]
[1617354897128,2.90695,1988.6,1988.5,2.90695]
[1617354901133,0.0158,1988.9,1988.6,63.1335]
[1617354901333,0.0158,1988.9,1988.6,64.434]
[1617354902733,0.0158,1988.9,1988.8,2.90695]
[1617354903538,13.9594,1989.1,1988.8,2.90695]
[1617354904634,14.9588,1989.1,1988.8,2.90695]
[1617354904835,2.90695,1988.9,1988.8,2.90695]
[1617354908041,0.9994,1989.1,1988.8,2.90695]
[1617354908843,0.9994,1989.1,1989.0,4.42995]
[1617354910444,0.9994,1989.1,1989.0,3.77125]
[1617354910648,2.90185,1989.2,1989.0,3.77125]
[1617354911648,3.90035,1989.2,1989.0,3.77125]
[1617354913850,3.90035,1989.2,1989.0,2.24825]
[1617354914949,3.90035,1989.2,1988.8,2.90695]
[1617354915150,5.14015,1989.2,1988.8,2.90695]
[1617354916954,2.90695,1989.0,1988.8,2.90695]
[1617354917555,1.90245,1989.0,1988.8,2.90695]
[1617354918157,3.13445,1989.0,1988.8,2.90695]
[1617354918957,1.232,1989.0,1988.8,2.90695]
[1617354919581,3.90545,1989.2,1988.8,2.90695]
[1617354920170,0.9985,1989.2,1988.8,32.90695]
[1617354920382,0.9985,1989.2,1988.8,34.79895]
[1617354920968,0.9985,1989.2,1989.1,2.90695]
[1617354921971,0.9985,1989.2,1989.1,85.42565]
[1617354922573,0.9985,1989.2,1989.1,2.90695]
[1617354922972,3.90545,1989.2,1989.1,2.90695]
[1617354923573,3.90545,1989.2,1989.1,3.90695]
[1617354924474,2.90095,1989.2,1989.1,3.90695]
[1617354926079,2.90095,1989.2,1989.1,1.75015]
[1617354927481,2.90095,1989.2,1989.1,1.0]
[1617354928682,3.89225,1989.2,1989.1,1.0]
[1617354931284,3.89225,1989.2,1989.1,0.0014]
[1617354931684,2.88775,1989.2,1989.1,0.0014]
[1617354938500,1.88325,1989.2,1989.1,0.0014]
[1617354941004,0.89195,1989.2,1989.1,0.0014]
[1617354941204,0.9999,1989.9,1989.1,0.0014]
[1617354941406,56.3738,1990.0,1989.1,0.0014]
[1617354943004,2.90695,1989.8,1989.5,2.90695]
[1617354945606,2.89285,1989.8,1989.5,2.90695]
[1617354945807,3.88555,1989.8,1989.5,2.90695]
[1617354946807,65.866,1989.3,1989.1,0.0014]
[1617354947007,2.90695,1989.2,1989.1,2.90835]
[1617354947207,2.90695,1989.2,1989.1,0.0014]
[1617354947907,3.90545,1989.2,1989.1,0.0014]
[1617354951311,2.90695,1989.2,1989.1,0.0014]
[1617354952316,3.91595,1989.2,1989.1,0.0014]
[1617354952717,2.91145,1989.2,1989.1,0.0014]
[1617354956921,3.37463349,1989.2,1989.1,0.0014]
[1617354957321,2.91145,1989.2,1989.1,0.0014]
[1617354958123,1.90245,1989.2,1989.1,0.0014]
[1617354958827,2.04724147,1989.2,1989.1,0.0014]
[1617354959224,3.06604147,1989.2,1989.1,0.0014]
[1617354959624,1.16359147,1989.2,1989.1,0.0014]
[1617354960625,0.14479147,1989.2,1989.1,0.0014]
[1617354960824,0.14482469,1989.3,1989.1,0.0014]
[1617354961125,0.14482469,1989.3,1989.2,2.90695]
[1617354961928,0.4634279,1989.4,1989.3,59.7155]
[1617354962325,0.14494007,1989.6,1989.3,89.7155]
[1617354962526,0.46392204,1990.0,1989.4,32.0]
[1617354962924,0.14506211,1990.0,1989.4,32.0]
[1617354963125,0.14506211,1990.0,1989.9,2.90695]
[1617354963325,0.1450918,1990.2,1990.0,83.088]
[1617354963524,0.1450918,1990.2,1990.0,113.088]
[1617354963726,0.1450918,1990.2,1989.9,4.64005]
[1617354963727,0.58463078,1990.2,1989.9,4.64005]
[1617354963925,0.5265918,1990.2,1989.9,4.64005]
[1617354964325,0.05804442,1990.2,1989.9,4.64005]
[1617354964726,0.05802118,1990.0,1989.9,4.64005]
[1617354965326,0.05802118,1990.0,1989.9,2.90695]
[1617354965727,0.14502395,1990.0,1989.9,2.90695]
[1617354966529,0.05799687,1990.0,1989.9,2.90695]
[1617354967930,0.14497341,1990.0,1989.9,2.90695]
[1617354968832,0.14497341,1990.0,1989.3,74.0381]
[1617354969033,0.46383381,1990.1,1989.3,74.0381]
[1617354969233,0.46383381,1990.1,1989.9,2.90695]
[1617354969633,0.05789783,1990.0,1989.9,2.90695]
[1617354970034,0.05789912,1990.1,1989.9,2.90695]
[1617354972136,0.05791716,1990.2,1989.9,2.90695]
[1617354973337,0.05791716,1990.2,1990.1,2.90695]
[1617354974339,2.96489234,1990.4,1990.1,2.90695]
[1617354974543,0.05794234,1990.4,1990.1,2.90695]
[1617354974942,0.05793095,1990.3,1990.1,2.90695]
[1617354975341,2.90695,1990.2,1990.1,2.90695]
[1617354975740,2.96486934,1990.2,1990.1,2.90695]
[1617354975942,3.05173991,1990.2,1990.1,2.90695]
[1617354976743,2.96487808,1990.2,1990.1,2.90695]
[1617354977146,3.05185212,1990.2,1990.1,2.90695]
[1617354977544,4.53365,1990.2,1990.1,2.90695]
[1617354978245,4.99723252,1990.2,1990.1,2.90695]
[1617354978946,4.53365,1990.2,1990.1,2.90695]
[1617354980150,4.67853203,1990.2,1990.1,2.90695]
[1617354980750,2.96484396,1990.2,1990.1,2.90695]
[1617354981752,2.90695,1990.2,1990.1,2.90695]
[1617354982154,3.90525,1990.2,1989.7,78.8264]
[1617354982353,2.90695,1990.2,1989.7,78.8264]
[1617354983255,0.05791408,1990.3,1989.8,2.90695]
[1617354983656,1.04961408,1990.3,1989.8,2.90695]
[1617354983856,71.5818,1989.9,1989.8,2.90695]
[1617354985360,74.48875,1989.9,1989.8,2.90695]
[1617354988660,2.90695,1989.9,1989.8,2.90695]
[1617354988860,2.90695,1989.9,1989.8,66.35155]
[1617354989261,2.90695,1990.0,1989.8,66.35155]
[1617354991266,2.90695,1990.0,1989.8,2.90695]
[1617354991465,66.1722,1989.9,1989.8,2.90695]
[1617354991865,66.1722,1989.9,1989.1,0.0014]
[1617354993368,66.1722,1989.9,1989.6,2.90695]
[1617354994367,66.23014437,1989.9,1989.6,2.90695]
[1617354995167,2.00483295,1989.8,1989.6,2.90695]
[1617354995367,2.90695,1989.7,1989.6,2.90695]
[1617355002377,71.06005,1989.7,1989.6,2.90695]
[1617355006680,2.90695,1989.7,1989.6,2.90695]
[1617355007080,4.71325,1989.7,1989.6,2.90695]
[1617355009284,2.90695,1989.7,1989.6,4.78595]
[1617355009486,0.05794326,1989.8,1989.6,34.78595]
[1617355009685,0.02899356,1989.9,1989.6,34.78595]
[1617355009885,0.02899356,1989.9,1989.6,4.78595]
[1617355010088,0.02900439,1990.1,1989.6,4.78595]
[1617355010685,1.0144,1990.4,1989.6,4.78595]
[1617355010889,1.0144,1990.4,1989.6,2.90695]
[1617355011087,0.85609162,1990.3,1989.6,2.90695]
[1617355011286,2.43569162,1990.3,1989.6,2.90695]
[1617355011487,4.58565,1989.7,1989.6,2.90695]